bitfinex/quotes_BTCUSD_20251215
["timestamp","ask_amount","ask_price","bid_price","bid_amount"]
[1765833813934,0.24393393,86089.0,86087.0,0.0703]
[1765833814135,0.24393393,86089.0,86086.0,0.02177]
[1765833814136,0.23232311,86087.0,86086.0,0.02177]
[1765833814520,0.23232311,86087.0,86086.0,0.05042]
[1765833814728,0.23232311,86087.0,86086.0,0.04942]
[1765833815345,0.23232041,86088.0,86086.0,0.09207]
[1765833815542,0.23232041,86088.0,86087.0,0.02765]
[1765833815794,0.23232041,86088.0,86087.0,0.0703]
[1765833816092,0.23232041,86088.0,86085.0,0.00161287]
[1765833816093,0.23232581,86086.0,86085.0,0.00161287]
[1765833816384,0.23232311,86087.0,86085.0,0.04426287]
[1765833816730,0.23232311,86087.0,86086.0,0.02865]
[1765833816931,0.23232311,86087.0,86086.0,0.02765]
[1765833817370,0.23052311,86087.0,86086.0,0.02765]
[1765833817928,0.23232158,86088.0,86086.0,0.0713]
[1765833818061,0.23232158,86088.0,86087.0,0.04947]
[1765833818267,0.23232158,86088.0,86087.0,0.09212]
[1765833819001,0.24392961,86091.0,86087.0,0.32444298]
[1765833819310,0.23231887,86089.0,86088.0,0.0703]
[1765833819518,0.23231887,86089.0,86088.0,0.04265]
[1765833819662,0.23231887,86089.0,86088.0,0.0703]
[1765833819868,0.24393266,86090.0,86088.0,0.0703]
[1765833820067,0.24393266,86090.0,86089.0,0.0703]
[1765833820268,0.01161534,86093.0,86090.0,0.24392941]
[1765833820523,0.01161534,86093.0,86090.0,0.28657941]
[1765833820719,0.25,86100.0,86092.0,0.25995958]
[1765833820720,0.01161507,86095.0,86092.0,0.25995958]
[1765833820933,0.01161507,86095.0,86094.0,0.02765]
[1765833821468,0.01161507,86095.0,86094.0,0.0703]
[1765833821695,0.24391853,86095.0,86094.0,0.0703]
[1765833822121,0.01161507,86095.0,86094.0,0.0703]
[1765833822362,0.01161399,86103.0,86096.0,0.24391253]
[1765833822563,0.01161467,86098.0,86095.0,0.02765]
[1765833822723,0.23229882,86096.0,86095.0,0.02765]
[1765833823073,0.01161521,86094.0,86091.0,0.24392755]
[1765833823221,0.01161467,86098.0,86096.0,0.02765]
[1765833823391,0.2439081,86098.0,86097.0,0.02765]
[1765833824005,0.23229882,86096.0,86095.0,0.001]
[1765833825068,0.23230281,86095.0,86093.0,0.01161534]
[1765833825273,0.23230281,86095.0,86093.0,0.05426534]
[1765833825477,0.23230281,86095.0,86094.0,0.02765]
[1765833825726,0.24391376,86096.0,86094.0,0.02765]
[1765833825924,0.2439081,86098.0,86095.0,0.27156659]
[1765833826145,0.01161467,86098.0,86097.0,0.02765]
[1765833826349,0.2439081,86098.0,86096.0,0.23229821]
[1765833826496,0.2439081,86098.0,86095.0,0.01261507]
[1765833826702,0.23229011,86100.0,86097.0,0.24391093]
[1765833826917,0.23227735,86104.0,86101.0,0.01161426]
[1765833827289,0.24389045,86105.0,86102.0,0.23228036]
[1765833827696,0.23227893,86104.0,86101.0,0.24389931]
[1765833828115,0.23226147,86110.0,86106.0,0.01161359]
[1765833828318,0.24396879,86112.0,86109.0,0.27152671]
[1765833828593,0.0116144,86100.0,86097.0,0.04265]
[1765833828803,0.23229343,86098.0,86097.0,0.06105]
[1765833829516,0.26181343,86098.0,86097.0,0.04265]
[1765833830230,0.26181343,86098.0,86097.0,0.04365]
[1765833830450,0.26181343,86098.0,86097.0,0.04465]
[1765833831061,0.26181343,86098.0,86097.0,0.002]
[1765833831275,0.30556343,86098.0,86097.0,0.002]
[1765833832687,0.3880566,86098.0,86097.0,0.002]
[1765833832884,0.30556343,86098.0,86097.0,0.002]
[1765833833691,0.30556343,86098.0,86097.0,0.001]
[1765833834093,0.26181343,86098.0,86097.0,0.001]
[1765833834305,0.2323134,86091.0,86088.0,0.24393636]
[1765833834519,0.2323134,86091.0,86088.0,0.24405042]
[1765833834668,0.23231526,86090.0,86088.0,0.00011406]
[1765833835105,0.23231771,86089.0,86088.0,0.00011406]
[1765833835539,0.23231771,86089.0,86088.0,0.00111406]
[1765833836069,0.23231771,86089.0,86088.0,0.00011406]
[1765833836312,0.23231771,86089.0,86088.0,0.00211406]
[1765833837169,0.00557,86092.0,86090.0,0.23231501]
[1765833837393,0.23230146,86096.0,86091.0,0.01161561]
[1765833837602,0.23229648,86097.0,86094.0,0.2323041]
[1765833838015,0.23229648,86097.0,86093.0,0.23230689]
[1765833838222,0.01161467,86098.0,86095.0,0.23230107]
[1765833838620,0.23230108,86096.0,86093.0,0.01161534]
[1765833838827,0.01161494,86096.0,86092.0,0.24392482]
[1765833839023,0.23230156,86095.0,86092.0,0.24392482]
[1765833839434,0.01161467,86098.0,86095.0,0.23230107]
[1765833839850,0.0116144,86100.0,86097.0,0.24391031]
[1765833839986,0.0116144,86100.0,86098.0,0.23229329]
[1765833840184,0.24389542,86103.0,86099.0,0.2439034]
[1765833840675,0.23229613,86097.0,86096.0,0.02182]
[1765833841102,0.01161494,86096.0,86093.0,0.001]
[1765833841307,0.01161494,86096.0,86092.0,0.001]
[1765833841308,0.24391678,86095.0,86092.0,0.001]
[1765833841536,0.26725692,86093.0,86092.0,0.001]
[1765833841760,0.23231771,86089.0,86083.0,0.30231669]
[1765833841988,0.24935226,86093.0,86089.0,0.24393122]
[1765833842204,0.2439247,86094.0,86091.0,0.01161561]
[1765833842414,0.2439247,86094.0,86089.0,0.01161588]
[1765833842415,0.24392126,86094.0,86093.0,0.001]
[1765833843323,0.23230375,86095.0,86093.0,0.00261287]
[1765833843504,0.23230422,86094.0,86093.0,0.00261287]
[1765833843938,0.23230422,86094.0,86093.0,0.00161287]
[1765833844490,0.23230199,86095.0,86093.0,0.00161287]
[1765833844946,0.24390541,86099.0,86096.0,0.01161494]
[1765833845146,0.23228044,86103.0,86096.0,0.01161494]
[1765833845147,0.24389139,86104.0,86099.0,0.01161453]
[1765833845349,0.24797365,86107.0,86103.0,0.24389368]
[1765833845547,0.23227321,86106.0,86104.0,0.23227713]
[1765833845889,0.04089,86113.0,86104.0,0.23227713]
[1765833845890,0.0001,86112.0,86109.0,0.23226375]
[1765833846096,0.0001,86112.0,86111.0,0.26209836]
[1765833846530,0.0001,86112.0,86111.0,0.30669836]
[1765833846734,0.0001,86112.0,86111.0,0.32809836]
[1765833848087,0.0001,86112.0,86111.0,0.33009836]
[1765833848292,0.0001,86112.0,86111.0,0.33209836]
[1765833850318,0.0001,86112.0,86111.0,0.05524]
[1765833850519,0.0001,86112.0,86111.0,0.28749836]
[1765833850948,0.0001,86112.0,86111.0,0.28349836]
[1765833851359,0.0001,86112.0,86111.0,0.28949836]
[1765833851571,0.0001,86112.0,86111.0,0.28649836]
[1765833851774,0.0001,86112.0,86111.0,0.28349836]
[1765833851918,0.0001,86112.0,86111.0,0.28449836]
[1765833852123,0.0001,86112.0,86111.0,0.28549836]
[1765833852733,0.0001,86112.0,86111.0,0.002]
[1765833852934,0.0001,86112.0,86111.0,0.25265836]
[1765833853232,0.0001,86112.0,86111.0,0.34849836]
[1765833854039,0.0001,86112.0,86111.0,0.34749836]
[1765833854328,0.0001,86112.0,86111.0,0.35049836]
[1765833854461,0.0001,86112.0,86111.0,0.34949836]
[1765833854671,0.0001,86112.0,86111.0,0.27505836]
[1765833855028,0.0001,86112.0,86111.0,0.27805836]
[1765833855346,0.0001,86112.0,86111.0,0.35249836]
[1765833855542,0.0001,86112.0,86111.0,0.34949836]
[1765833855954,0.0001,86112.0,86111.0,0.35149836]
[1765833856610,0.0001,86112.0,86111.0,0.34849836]
[1765833856828,0.0001,86112.0,86111.0,0.35049836]
[1765833856968,0.0001,86112.0,86111.0,0.25465836]
[1765833858467,0.0001,86112.0,86111.0,0.32909836]
[1765833863384,0.0001,86112.0,86111.0,0.25465836]
[1765833863993,0.0001,86112.0,86111.0,0.28449836]
[1765833864217,0.0001,86112.0,86111.0,0.32909836]
[1765833865851,0.0001,86112.0,86111.0,0.23225836]
[1765833866229,0.0001,86112.0,86111.0,0.25365836]
[1765833866681,0.0001,86112.0,86111.0,0.25065836]
[1765833867075,0.0001,86112.0,86111.0,0.25365836]
[1765833867445,0.0001,86112.0,86111.0,0.28249836]
[1765833867640,0.0001,86112.0,86111.0,0.28449836]
[1765833868361,0.0001,86112.0,86111.0,0.32909836]
[1765833874455,0.0001,86112.0,86111.0,0.31069836]
[1765833874764,0.0001,86112.0,86111.0,0.32909836]
[1765833875526,0.0001,86112.0,86111.0,0.32509836]
[1765833875753,0.0001,86112.0,86111.0,0.32052836]
[1765833875947,0.0001,86112.0,86111.0,0.32652836]
[1765833876438,0.0001,86112.0,86111.0,0.32352836]
[1765833877553,0.0001,86112.0,86111.0,0.32052836]
[1765833877840,0.0001,86112.0,86111.0,0.32352836]
[1765833878015,0.0001,86112.0,86111.0,0.32652836]
[1765833882638,0.08545094,86127.0,86123.0,0.24383463]
[1765833882822,0.08545094,86127.0,86120.0,0.24384555]
[1765833882823,0.23222562,86124.0,86121.0,0.24384037]
[1765833883623,0.24383355,86125.0,86121.0,0.24384037]
[1765833883845,0.0002,86139.0,86131.0,0.01161022]
[1765833884098,0.0002,86139.0,86133.0,0.26072904]
[1765833884099,0.00015411,86134.0,86133.0,0.26072904]
[1765833884304,0.01161049,86129.0,86124.0,0.01161116]
[1765833884454,0.01161062,86128.0,86124.0,0.03001116]
[1765833884650,0.01161062,86128.0,86124.0,0.25062313]
[1765833884856,0.24396213,86134.0,86130.0,0.23220687]
[1765833885064,0.23221252,86128.0,86127.0,0.02853]
[1765833885264,0.01161062,86128.0,86124.0,0.0184]
[1765833885464,0.23221839,86126.0,86125.0,0.0184]
[1765833885666,0.23221839,86126.0,86124.0,0.002]
[1765833885899,0.2322206,86125.0,86124.0,0.002]
[1765833886255,0.23221792,86126.0,86124.0,0.002]
[1765833886459,0.24381811,86130.0,86127.0,0.23221386]
[1765833886668,0.24381466,86131.0,86128.0,0.01161062]
[1765833886852,0.01161062,86128.0,86127.0,0.001]
[1765833887062,0.24382564,86128.0,86127.0,0.001]
[1765833887830,0.23221252,86128.0,86127.0,0.001]
[1765833888035,0.24382156,86129.0,86125.0,0.24383163]
[1765833888648,0.01161103,86125.0,86122.0,0.0184]
[1765833888822,0.232226,86123.0,86122.0,0.0184]
[1765833889945,0.31248598,86123.0,86122.0,0.0204]
[1765833890147,0.23222379,86124.0,86122.0,0.0204]
[1765833890355,0.01161089,86126.0,86123.0,0.24383592]
[1765833890576,0.24382836,86127.0,86124.0,0.24383376]
[1765833890974,0.24381544,86131.0,86127.0,0.24382487]
[1765833891198,0.01161008,86132.0,86128.0,0.24382055]
[1765833891402,0.23220444,86131.0,86128.0,0.24382055]
[1765833891602,0.23220444,86131.0,86129.0,0.23220948]
[1765833891819,0.01176392,86134.0,86129.0,0.23220948]
[1765833891820,0.23235222,86134.0,86131.0,0.24381395]
[1765833892104,0.00015411,86134.0,86133.0,0.26072904]
[1765833892312,0.23235045,86134.0,86130.0,0.01161035]
[1765833892542,0.01161008,86132.0,86129.0,0.03191049]
[1765833892757,0.23221171,86129.0,86126.0,0.23221772]
[1765833892939,0.01161008,86132.0,86130.0,0.23220712]
[1765833893167,0.00015411,86134.0,86131.0,0.2438138]
[1765833893294,0.00015411,86134.0,86133.0,0.26072904]
[1765833893501,0.00015411,86134.0,86131.0,0.05295022]
[1765833893502,0.00015411,86134.0,86131.0,0.24380942]
[1765833893733,0.00015411,86134.0,86133.0,0.23219904]
[1765833894176,0.00015411,86134.0,86133.0,0.32046904]
[1765833895003,0.00015411,86134.0,86133.0,0.25059904]
[1765833895638,0.00015411,86134.0,86133.0,0.27912904]
[1765833895954,0.23235045,86134.0,86133.0,0.0184]
[1765833896150,0.01160995,86133.0,86126.0,0.2907]
[1765833896350,0.24381181,86132.0,86131.0,0.0184]
[1765833896775,0.01161143,86122.0,86118.0,0.01161197]
[1765833896981,0.24383634,86124.0,86120.0,0.0184]
[1765833897184,0.23223139,86121.0,86120.0,0.0184]
[1765833897610,0.23222925,86122.0,86120.0,0.0184]
[1765833897819,0.0116113,86123.0,86120.0,0.0300117]
[1765833897983,0.24383747,86123.0,86120.0,0.26224517]
[1765833898168,0.24383747,86123.0,86120.0,0.0184]
[1765833898369,0.23222976,86122.0,86120.0,0.0224]
[1765833898702,0.23222976,86122.0,86120.0,0.0184]
[1765833898863,0.23222976,86122.0,86120.0,0.0214]
[1765833899868,0.23222976,86122.0,86120.0,0.0184]
[1765833900104,0.23222976,86122.0,86120.0,0.0214]
[1765833900466,0.23223006,86122.0,86120.0,0.0254]
[1765833900867,0.23223139,86121.0,86120.0,0.0254]
[1765833901487,0.23223006,86122.0,86120.0,0.0254]
[1765833901683,0.23223139,86121.0,86120.0,0.0214]
[1765833902033,0.2438116,86133.0,86124.0,0.01161116]
[1765833902232,0.01160968,86135.0,86121.0,0.01161156]
[1765833902233,0.01161076,86127.0,86121.0,0.01161156]
[1765833902433,0.01160995,86133.0,86130.0,0.24381725]
[1765833902580,0.00015411,86134.0,86127.0,0.01161076]
[1765833902581,0.00015411,86134.0,86132.0,0.23220084]
[1765833902784,0.24396295,86134.0,86130.0,0.23220463]
[1765833902986,0.24381584,86131.0,86128.0,0.01161062]
[1765833903198,0.01161049,86129.0,86126.0,0.01161089]
[1765833903522,0.2438204,86129.0,86126.0,0.24382802]
[1765833903725,0.2438204,86129.0,86111.0,0.2907]
[1765833903726,0.24386516,86115.0,86111.0,0.2907]
[1765833903924,0.01161183,86119.0,86117.0,0.0184]
[1765833904092,0.0116113,86123.0,86117.0,0.0184]
[1765833904093,0.23223139,86121.0,86120.0,0.004]
[1765833904323,0.23223457,86120.0,86117.0,0.26224915]
[1765833904525,0.24384297,86121.0,86118.0,0.23223818]
[1765833904775,0.01161143,86122.0,86119.0,0.24384719]
[1765833904944,0.24384021,86122.0,86119.0,0.01161183]
[1765833905157,0.01161143,86122.0,86119.0,0.24384728]
[1765833905361,0.01161143,86122.0,86120.0,0.001]
[1765833905571,0.01161089,86126.0,86123.0,0.23222555]
[1765833905772,0.24381751,86130.0,86126.0,0.29123872]
[1765833905972,0.24381597,86131.0,86127.0,0.02814]
[1765833906233,0.01161103,86125.0,86122.0,0.01161143]
[1765833906365,0.23220516,86131.0,86128.0,0.23220999]
[1765833906570,0.01161049,86129.0,86125.0,0.01161103]
[1765833906836,0.23221495,86128.0,86125.0,0.01161103]
[1765833907111,0.01161183,86119.0,86115.0,0.0184]
[1765833907313,0.23224487,86116.0,86115.0,0.0184]
[1765833907455,0.01161076,86127.0,86117.0,0.0116121]
[1765833907659,0.01161103,86125.0,86122.0,0.24384002]
[1765833907859,0.01161089,86126.0,86124.0,0.23222227]
[1765833908071,0.24382359,86128.0,86125.0,0.25248991]
[1765833908273,0.24382359,86128.0,86125.0,0.25148991]
[1765833908671,0.24381773,86130.0,86126.0,0.2438288]
[1765833908914,0.00015411,86134.0,86131.0,0.01161022]
[1765833909094,0.00015411,86134.0,86133.0,0.23219904]
[1765833909890,0.00015411,86134.0,86133.0,0.29881904]
[1765833910373,0.00015411,86134.0,86133.0,0.23219904]
[1765833910780,0.00015411,86134.0,86133.0,0.26033904]
[1765833911015,0.00015411,86134.0,86133.0,0.29881904]
[1765833911401,0.00015411,86134.0,86133.0,0.30081904]
[1765833911801,0.00015411,86134.0,86133.0,0.29881904]
[1765833912005,0.00015411,86134.0,86133.0,0.30181904]
[1765833912847,0.00015411,86134.0,86133.0,0.003]
[1765833913047,0.23235045,86134.0,86133.0,0.003]
[1765833913220,0.24396026,86134.0,86131.0,0.0184]
[1765833913420,0.00015411,86134.0,86133.0,0.003]
[1765833913620,0.23235045,86134.0,86133.0,0.006]
[1765833913839,0.23235045,86134.0,86133.0,0.003]
[1765833913840,0.25804045,86134.0,86133.0,0.003]
[1765833914039,0.00015411,86134.0,86133.0,0.23519904]
[1765833914255,0.00015411,86134.0,86133.0,0.23719904]
[1765833914453,0.00015411,86134.0,86133.0,0.23519904]
[1765833914694,0.00015411,86134.0,86133.0,0.06662]
[1765833914833,0.36260661,86134.0,86133.0,0.002]
[1765833915056,0.36260661,86134.0,86133.0,0.004]
[1765833915258,0.31139026,86134.0,86133.0,0.004]
[1765833915570,0.31139026,86134.0,86133.0,0.002]
[1765833915907,0.31139026,86134.0,86133.0,0.004]
[1765833916920,0.31139026,86134.0,86133.0,0.002]
[1765833917307,0.31139026,86134.0,86133.0,0.003]
[1765833917508,0.31139026,86134.0,86133.0,0.001]
[1765833917932,0.26965026,86134.0,86133.0,0.002]
[1765833918250,0.26965026,86134.0,86133.0,0.001]
[1765833918434,0.01161035,86130.0,86125.0,0.24383032]
[1765833918636,0.01161062,86128.0,86125.0,0.24383032]
[1765833918850,0.24382515,86128.0,86126.0,0.23221706]
[1765833919054,0.24382515,86128.0,86125.0,0.24383032]
[1765833919882,0.24382515,86128.0,86126.0,0.23321786]
[1765833920148,0.01161022,86131.0,86128.0,0.2322124]
[1765833920427,0.23220726,86130.0,86128.0,0.2322124]
[1765833920604,0.24381761,86130.0,86127.0,0.24382371]
[1765833921400,0.24396088,86134.0,86130.0,0.01161035]
[1765833921600,0.23220178,86132.0,86130.0,0.01161035]
[1765833921844,0.23220178,86132.0,86126.0,0.01161089]
[1765833921845,0.23221393,86128.0,86124.0,0.24383442]
[1765833922144,0.01161049,86129.0,86127.0,0.23221521]
[1765833922145,0.24382068,86129.0,86127.0,0.23221521]
[1765833922324,0.24381503,86131.0,86128.0,0.23221026]
[1765833922648,0.24381922,86130.0,86127.0,0.01161076]
[1765833923010,0.24381922,86130.0,86127.0,0.24382373]
[1765833923422,0.23221024,86129.0,86127.0,0.01361076]
[1765833923622,0.23221024,86129.0,86127.0,0.01161076]
[1765833923838,0.24381922,86130.0,86127.0,0.24382552]
[1765833924009,0.24381922,86130.0,86127.0,0.24582552]
[1765833924208,0.24381922,86130.0,86127.0,0.24382552]
[1765833924429,0.24381922,86130.0,86128.0,0.23321223]
[1765833924843,0.24381922,86130.0,86128.0,0.23221223]
[1765833925049,0.24381922,86130.0,86127.0,0.24582552]
[1765833925214,0.24381922,86130.0,86128.0,0.23221232]
[1765833926498,0.24381922,86130.0,86128.0,0.23421232]
[1765833926702,0.24381922,86130.0,86128.0,0.002]
[1765833926928,0.26780982,86129.0,86128.0,0.003]
[1765833927870,0.26780982,86129.0,86128.0,0.002]
[1765833928061,0.26780982,86129.0,86128.0,0.003]
[1765833929077,0.26780982,86129.0,86128.0,0.001]
[1765833929255,0.0356,86129.0,86128.0,0.001]
[1765833929453,0.00991,86129.0,86128.0,0.23421252]
[1765833929656,0.00991,86129.0,86128.0,0.002]
[1765833930284,0.24211982,86129.0,86128.0,0.002]
[1765833930483,0.00991,86129.0,86128.0,0.002]
[1765833930638,0.00991,86129.0,86128.0,0.23421252]
[1765833931147,0.00991,86129.0,86128.0,0.002]
[1765833931554,0.26983982,86129.0,86128.0,0.002]
[1765833932602,0.24211982,86129.0,86128.0,0.002]
[1765833936455,0.23220982,86129.0,86128.0,0.002]
[1765833936661,0.23220982,86129.0,86128.0,0.07191]
[1765833936992,0.23220982,86129.0,86128.0,0.002]
[1765833939467,0.23220948,86130.0,86128.0,0.002]
[1765833940273,0.23220948,86130.0,86128.0,0.001]
[1765833940472,0.01161022,86131.0,86129.0,0.23220982]
[1765833941561,0.23220712,86130.0,86128.0,0.002]
[1765833941762,0.23220712,86130.0,86128.0,0.001]
[1765833941763,0.23220982,86129.0,86128.0,0.001]
[1765833942219,0.23221469,86128.0,86125.0,0.24383112]
[1765833942425,0.23208303,86128.0,86125.0,0.24383112]
[1765833943414,0.24382053,86129.0,86126.0,0.23221787]
[1765833943746,0.01161049,86129.0,86127.0,0.23221407]
[1765833944410,0.24381494,86131.0,86128.0,0.23221195]
[1765833945337,0.24381478,86131.0,86128.0,0.01161062]
[1765833945672,0.23220982,86129.0,86128.0,0.001]
[1765833945902,0.01161035,86130.0,86128.0,0.001]
[1765833946100,0.23220982,86129.0,86128.0,0.001]
[1765833946444,0.24381563,86131.0,86128.0,0.002]
[1765833946833,0.24381563,86131.0,86128.0,0.001]
[1765833947039,0.23220982,86129.0,86128.0,0.001]
[1765833947230,0.24381468,86131.0,86128.0,0.002]
[1765833947723,0.23220839,86130.0,86128.0,0.001]
[1765833947925,0.23220982,86129.0,86128.0,0.001]
[1765833948136,0.23220982,86129.0,86128.0,0.002]
[1765833948426,0.23220982,86129.0,86126.0,0.2438286]
[1765833948610,0.23220982,86129.0,86128.0,0.002]
[1765833948994,0.23220982,86129.0,86128.0,0.001]
[1765833949226,0.00849,86133.0,86128.0,0.001]
[1765833949227,0.00015411,86134.0,86131.0,0.01161022]
[1765833949564,0.01161022,86131.0,86128.0,0.0204]
[1765833949767,0.00015411,86134.0,86132.0,0.23220173]
[1765833949966,0.00015411,86134.0,86133.0,0.02755]
[1765833950196,0.00015411,86134.0,86133.0,0.30210904]
[1765833950570,0.00015411,86134.0,86133.0,0.06991]
[1765833950784,0.00015411,86134.0,86133.0,0.25974904]
[1765833951463,0.00015411,86134.0,86133.0,0.30210904]
[1765833951670,0.00015411,86134.0,86133.0,0.30310904]
[1765833951863,0.00015411,86134.0,86133.0,0.07091]
[1765833952186,0.23235045,86134.0,86133.0,0.001]
[1765833952412,0.23235045,86134.0,86133.0,0.002]
[1765833953908,0.00015411,86134.0,86133.0,0.002]
[1765833954110,0.00015411,86134.0,86133.0,0.26174904]
[1765833954474,0.00015411,86134.0,86133.0,0.30410904]
[1765833956211,0.00015411,86134.0,86133.0,0.02855]
[1765833956528,0.00015411,86134.0,86133.0,0.30510904]
[1765833956875,0.00015411,86134.0,86133.0,0.30410904]
[1765833957282,0.00015411,86134.0,86133.0,0.30710904]
[1765833958306,0.23235045,86134.0,86133.0,0.07491]
[1765833958505,0.00015411,86134.0,86133.0,0.07491]
[1765833959027,0.00015411,86134.0,86133.0,0.30710904]
[1765833960181,0.00015411,86134.0,86133.0,0.30872191]
[1765833960389,0.00015411,86134.0,86133.0,0.59942191]
[1765833961069,0.00015411,86134.0,86133.0,0.59642191]
[1765833961287,4.11e-06,86134.0,86133.0,0.59742191]
[1765833961428,0.0002,86139.0,86138.0,0.57290395]
[1765833961631,0.0002,86139.0,86138.0,0.70381808]
[1765833961827,0.0002,86139.0,86138.0,0.68353682]
[1765833962816,0.0002,86139.0,86138.0,0.68753682]
[1765833963999,0.01160537,86167.0,86162.0,0.23212061]
[1765833964221,0.00058003,86164.0,86163.0,0.31026819]
[1765833964866,0.00058003,86164.0,86163.0,0.07815]
[1765833965385,0.00058003,86164.0,86163.0,0.31126819]
[1765833966391,0.23269553,86164.0,86163.0,0.003]
[1765833968071,0.00058003,86164.0,86163.0,0.003]
[1765833968766,0.23269553,86164.0,86163.0,0.003]
[1765833969785,0.29842553,86164.0,86163.0,0.003]
[1765833970012,0.25989553,86164.0,86163.0,0.003]
[1765833970367,0.29842553,86164.0,86163.0,0.003]
[1765833970785,0.23214513,86153.0,86152.0,0.01307]
[1765833970957,0.23214513,86153.0,86152.0,0.03147]
[1765833971167,0.23213146,86159.0,86156.0,0.01160685]
[1765833971369,0.2437379,86159.0,86153.0,0.03864]
[1765833971526,0.01160685,86156.0,86154.0,0.2321418]
[1765833971929,0.23214143,86155.0,86153.0,0.03864]
[1765833972171,0.23214143,86155.0,86152.0,0.03508287]
[1765833972172,0.23214513,86153.0,86152.0,0.00361287]
[1765833972373,0.24374756,86155.0,86152.0,0.00561287]
[1765833972705,0.24374414,86156.0,86153.0,0.01160725]
[1765833972914,0.23213986,86155.0,86153.0,0.01160725]
[1765833973121,0.23213986,86155.0,86153.0,0.002]
[1765833973341,0.01160685,86156.0,86153.0,0.24375214]
[1765833973502,0.24374446,86156.0,86153.0,0.01160725]
[1765833973702,0.24374903,86155.0,86154.0,0.001]
[1765833973903,0.24374446,86156.0,86154.0,0.001]
[1765833974304,0.23213974,86155.0,86153.0,0.002]
[1765833974505,0.23213974,86155.0,86153.0,0.02062]
[1765833974827,0.2437413,86157.0,86154.0,0.24374882]
[1765833975140,0.23212668,86160.0,86156.0,0.03804685]
[1765833975351,0.2321313,86159.0,86156.0,0.2701833]
[1765833975560,0.2321313,86159.0,86157.0,0.03864]
[1765833975756,0.00058003,86164.0,86158.0,0.05666658]
[1765833975896,0.0121858,86164.0,86163.0,0.02644]
[1765833976094,0.2443013,86164.0,86163.0,0.06508]
[1765833977119,0.2443013,86164.0,86163.0,0.02644]
[1765833977339,0.2321259,86161.0,86159.0,0.03864]
[1765833977553,0.01160604,86162.0,86159.0,0.27076837]
[1765833977736,0.01160604,86162.0,86156.0,0.01321972]
[1765833977737,0.23213435,86157.0,86156.0,0.00161287]
[1765833978628,0.01160564,86165.0,86159.0,0.01160644]
[1765833978835,0.24430366,86164.0,86161.0,0.26234904]
[1765833979366,0.00058003,86164.0,86163.0,0.02644]
[1765833979735,0.00058003,86164.0,86163.0,0.06508]
[1765833979949,0.23269553,86164.0,86163.0,0.02644]
[1765833980382,0.23212088,86162.0,86161.0,0.001]
[1765833980744,0.23212088,86162.0,86159.0,0.24373306]
[1765833980938,0.0121858,86164.0,86161.0,0.02644]
[1765833981160,0.23269553,86164.0,86163.0,0.02644]
[1765833981696,0.00058003,86164.0,86163.0,0.02644]
[1765833981857,0.00058003,86164.0,86163.0,0.02844]
[1765833982061,0.23269553,86164.0,86163.0,0.002]
[1765833982978,0.25989553,86164.0,86163.0,0.002]
[1765833983370,0.32214498,86164.0,86163.0,0.003]
[1765833983779,0.32214498,86164.0,86163.0,0.002]
[1765833983996,0.32214498,86164.0,86163.0,0.003]
[1765833984469,0.36067498,86164.0,86163.0,0.003]
[1765833985415,0.29842553,86164.0,86163.0,0.003]
[1765833985625,0.29842553,86164.0,86163.0,0.004]
[1765833986387,0.31682553,86164.0,86163.0,0.004]
[1765833986590,0.60752553,86164.0,86163.0,0.004]
[1765833986830,0.60752553,86164.0,86163.0,0.003]
[1765833987248,0.72385668,86164.0,86163.0,0.003]
[1765833987690,0.24378685,86141.0,86138.0,0.25289491]
[1765833988076,0.24378685,86141.0,86140.0,0.02644]
[1765833988655,0.01161008,86132.0,86129.0,0.06887049]
[1765833988855,0.24381224,86132.0,86130.0,0.0184]
[1765833989099,0.24381181,86132.0,86131.0,0.06508]
[1765833989538,0.23220002,86133.0,86131.0,0.06508]
[1765833989907,0.23220173,86132.0,86131.0,0.02644]
[1765833990066,0.23220173,86132.0,86129.0,0.04302]
[1765833990067,0.23220712,86130.0,86129.0,0.04302]
[1765833990266,0.01161008,86132.0,86129.0,0.04302]
[1765833990494,0.01160981,86134.0,86131.0,0.02844]
[1765833990672,0.23220173,86132.0,86131.0,0.02844]
[1765833991138,0.23220173,86132.0,86131.0,0.002]
[1765833991311,0.36865391,86132.0,86131.0,0.004]
[1765833991521,0.0116117,86120.0,86117.0,0.0184]
[1765833991705,0.23223747,86119.0,86117.0,0.0184]
[1765833992106,0.23224218,86117.0,86116.0,0.01912]
[1765833992373,0.0116117,86120.0,86118.0,0.02749]
[1765833992594,0.01161062,86128.0,86123.0,0.0116113]
[1765833992722,0.01161076,86127.0,86120.0,0.02749]
[1765833992923,0.23222782,86123.0,86120.0,0.27133397]
[1765833993124,0.23222869,86122.0,86121.0,0.02058]
[1765833993554,0.23222782,86123.0,86121.0,0.02058]
[1765833994169,0.23222869,86122.0,86121.0,0.02058]
[1765833994372,0.23222782,86123.0,86121.0,0.02058]
[1765833994726,0.01161116,86124.0,86121.0,0.02358]
[1765833994967,0.24383505,86124.0,86121.0,0.02358]
[1765833995269,0.232226,86123.0,86121.0,0.02358]
[1765833995499,0.232226,86123.0,86121.0,0.02558]
[1765833995693,0.01161116,86124.0,86122.0,0.06727]
[1765833996480,0.01161116,86124.0,86122.0,0.02749]
[1765833996659,0.232226,86123.0,86122.0,0.02749]
[1765833997149,0.24383522,86124.0,86122.0,0.02749]
[1765833997625,0.232226,86123.0,86121.0,0.02058]
[1765833997989,0.232226,86123.0,86122.0,0.002]
[1765833998447,0.23222869,86122.0,86121.0,0.002]
[1765833998758,0.24384012,86122.0,86119.0,0.01161183]
[1765833998875,0.24384012,86122.0,86118.0,0.00161287]
[1765833998876,0.00443,86119.0,86118.0,0.00161287]
[1765833999080,0.23223643,86120.0,86118.0,0.00161287]
[1765834000093,0.01161156,86121.0,86118.0,0.23385028]
[1765834000710,0.23223678,86119.0,86118.0,0.00161287]
[1765834000918,0.24384295,86121.0,86118.0,0.00161287]
[1765834001097,0.01161156,86121.0,86118.0,0.00461287]
[1765834001497,0.23223678,86119.0,86118.0,0.00461287]
[1765834001920,0.23223657,86120.0,86118.0,0.00761287]
[1765834002235,0.24384341,86121.0,86118.0,0.23685207]
[1765834002451,0.23223529,86120.0,86118.0,0.00661287]
[1765834002652,0.01161156,86121.0,86118.0,0.00661287]
[1765834002858,0.01161156,86121.0,86118.0,0.24846206]
[1765834003115,0.01161062,86128.0,86123.0,0.0116113]
[1765834003316,0.04144,86138.0,86123.0,0.0116113]
[1765834003317,0.01160981,86134.0,86131.0,0.01161022]
[1765834003494,0.24381129,86133.0,86130.0,0.24381519]